bitfinex/quotes_ETHUSD_20250630
["timestamp","ask_amount","ask_price","bid_price","bid_amount"]
[1751298944448,6.31600113,2477.7,2477.6,9.58666848]
[1751298944682,7.429755,2477.7,2477.6,8.01557174]
[1751298944861,6.31600113,2477.7,2477.6,8.01557174]
[1751298945179,6.31600113,2477.7,2477.6,9.58566848]
[1751298945357,6.31600113,2477.7,2477.6,8.01557174]
[1751298945558,6.31600113,2477.7,2477.6,8.01457174]
[1751298945763,4.03616402,2477.6,2477.4,2.008]
[1751298945966,4.03648986,2477.4,2477.3,1.17839403]
[1751298946165,6.30648986,2477.4,2477.3,8.01711783]
[1751298946357,7.12838986,2477.4,2477.3,8.01711783]
[1751298946972,7.12838986,2477.4,2477.3,0.94311783]
[1751298947278,8.24486542,2477.4,2477.3,8.01611783]
[1751298947480,7.12838986,2477.4,2477.3,0.94311783]
[1751298947786,7.12838986,2477.4,2477.3,8.01611783]
[1751298949071,2.27,2477.4,2477.3,8.01611783]
[1751298949275,6.30648986,2477.4,2477.3,8.01611783]
[1751298949900,2.27,2477.4,2477.3,8.01611783]
[1751298950067,2.27,2477.4,2477.3,13.04985182]
[1751298951299,0.01,2477.7,2477.4,4.58641273]
[1751298951506,0.01,2477.7,2477.5,4.97944477]
[1751298951719,0.01,2477.7,2477.6,14.04128185]
[1751298952110,0.01,2477.7,2477.6,15.21967588]
[1751298952278,0.01,2477.7,2477.6,11.18351186]
[1751298952592,4.04600113,2477.7,2477.6,10.00411783]
[1751298952780,0.01,2477.7,2477.6,0.94311783]
[1751298952982,0.01,2477.7,2477.6,10.00311783]
[1751298953178,4.04600113,2477.7,2477.6,10.00311783]
[1751298953571,0.01,2477.7,2477.6,10.00311783]
[1751298953775,0.01,2477.7,2477.6,0.94311783]
[1751298953974,4.67759389,2477.7,2477.6,8.01011783]
[1751298954243,4.04600113,2477.7,2477.6,8.01011783]
[1751298954777,4.04600113,2477.7,2477.6,0.94311783]
[1751298954980,4.86800113,2477.7,2477.6,0.94311783]
[1751298955320,4.86800113,2477.7,2477.6,8.00911783]
[1751298956606,4.86800113,2477.7,2477.6,0.94311783]
[1751298956815,4.8532528,2477.3,2477.2,1.17839403]
[1751298957014,4.8532528,2477.3,2477.2,8.24339403]
[1751298957309,4.8532528,2477.3,2477.2,7.065]
[1751298959279,4.03681575,2477.2,2477.1,1.17839403]
[1751298959482,4.42369792,2477.2,2477.1,1.17839403]
[1751298959684,5.75504198,2477.2,2477.1,8.24139403]
[1751298960095,5.75504198,2477.2,2477.1,1.17839403]
[1751298960290,5.75504198,2477.2,2477.1,8.24039403]
[1751298960526,4.42369792,2477.2,2477.1,8.24039403]
[1751298960693,4.42369792,2477.2,2477.1,1.17839403]
[1751298961186,4.42369792,2477.2,2477.1,8.24039403]
[1751298961387,4.42369792,2477.2,2477.1,1.17839403]
[1751298961620,4.42369792,2477.2,2477.1,8.23939403]
[1751298961824,5.35139299,2477.2,2477.1,7.061]
[1751298962892,4.03730469,2476.9,2476.8,1.17839403]
[1751298963083,4.0374677,2476.8,2476.7,1.992]
[1751298963278,4.0374677,2476.8,2476.6,1.17839403]
[1751298963279,4.03779374,2476.6,2476.5,1.17839403]
[1751298963484,4.03779374,2476.6,2476.5,8.23839403]
[1751298963485,0.38688217,2476.6,2476.5,8.23839403]
[1751298963679,4.42467591,2476.6,2476.5,7.06]
[1751298964109,0.38688217,2476.6,2476.5,7.06]
[1751298964423,0.38688217,2476.6,2476.5,8.23729243]
[1751298964625,0.38688217,2476.6,2476.5,7.06]
[1751298965123,0.38688217,2476.6,2476.5,1.17735618]
[1751298965323,0.38688217,2476.6,2476.5,9.051]
[1751298966013,4.03795679,2476.5,2476.4,1.17735618]
[1751298966217,0.38688217,2476.6,2476.4,10.22735618]
[1751298966415,0.38688217,2476.6,2476.4,9.05]
[1751298967143,0.38688217,2476.6,2476.4,13.08803595]
[1751298967333,0.38688217,2476.6,2476.4,9.05]
[1751298968435,0.38688217,2476.6,2476.4,13.0881111]
[1751298968745,0.38688217,2476.6,2476.5,0.94069378]
[1751298970651,0.38688217,2476.6,2476.5,4.97865057]
[1751298970945,0.38688217,2476.6,2476.5,0.94069378]
[1751298971111,0.38688217,2476.6,2476.5,4.97865057]
[1751298971731,0.38688217,2476.6,2476.5,0.94069378]
[1751298972146,0.38688217,2476.6,2476.5,7.99469378]
[1751298972654,11.12738746,2477.7,2476.8,4.5874677]
[1751298972655,0.38688217,2476.9,2476.8,4.5874677]
[1751298972942,0.38688217,2476.9,2476.8,13.59546148]
[1751298973643,0.38688217,2476.9,2476.8,16.01098212]
[1751298973814,0.38688217,2476.9,2476.8,6.15328212]
[1751298974017,0.38688217,2476.9,2476.8,15.19628212]
[1751298974517,0.38688217,2476.9,2476.8,11.15881442]
[1751298974737,0.38688217,2476.9,2476.8,9.98369378]
[1751298974941,0.38688217,2476.9,2476.8,15.19628212]
[1751298975720,0.38688217,2476.9,2476.8,11.15881442]
[1751298976445,0.38688217,2476.9,2476.8,11.15781442]
[1751298977044,0.38688217,2476.9,2476.8,15.19528212]
[1751298977235,0.38688217,2476.9,2476.8,2.11581442]
[1751298977446,0.38688217,2476.9,2476.8,11.15581442]
[1751298977823,0.38688217,2476.9,2476.8,9.97969378]
[1751298978224,0.38688217,2476.9,2476.8,11.15481442]
[1751298978749,0.39688217,2477.6,2477.0,0.7836]
[1751298978921,0.39688217,2477.6,2477.5,4.81992694]
[1751298978922,0.01,2477.6,2477.5,4.81992694]
[1751298979120,0.01,2477.6,2477.5,15.34862072]
[1751298979552,0.01,2477.6,2477.5,16.52537757]
[1751298979922,0.01,2477.6,2477.5,17.581974]
[1751298980124,0.01,2477.6,2477.5,27.783574]
[1751298980368,0.01,2477.6,2477.5,28.95897669]
[1751298980596,0.01,2477.6,2477.5,27.783574]
[1751298980781,0.01,2477.6,2477.5,28.95912412]
[1751298980929,0.01,2477.6,2477.5,27.783574]
[1751298981457,0.01,2477.6,2477.5,29.35367074]
[1751298982144,0.01,2477.6,2477.5,27.783574]
[1751298982352,0.01,2477.6,2477.5,29.34957861]
[1751298983225,0.01,2477.6,2477.5,20.31157861]
[1751298983434,0.01,2477.6,2477.5,26.34262533]
[1751298983742,0.01,2477.6,2477.5,10.94069378]
[1751298983941,0.01,2477.6,2477.5,4.09000565]
[1751298984141,0.39688217,2477.6,2477.5,9.95569378]
[1751298984346,0.39688217,2477.6,2477.5,2.91569378]
[1751298984522,0.39688217,2477.6,2477.5,9.95569378]
[1751298984721,5.67152728,2477.6,2477.5,0.94069378]
[1751298985025,5.67152728,2477.6,2477.5,7.04]
[1751298985450,5.67152728,2477.6,2477.5,7.9797241]
[1751298985625,5.67152728,2477.6,2477.5,7.04]
[1751298986251,4.03663674,2477.4,2476.9,11.17431187]
[1751298986446,4.03663674,2477.4,2477.1,1.975]
[1751298986447,0.40366367,2477.3,2477.1,1.975]
[1751298986646,0.40366367,2477.3,2477.2,7.97897434]
[1751298986848,4.42338158,2477.4,2477.2,7.97897434]
[1751298987048,4.42338158,2477.4,2477.3,7.038]
[1751298987359,0.38688217,2477.4,2477.3,7.038]
[1751298988133,0.38688217,2477.4,2477.3,11.0746528]
[1751298988336,0.38688217,2477.4,2477.3,13.86932069]
[1751298988546,0.38688217,2477.4,2477.3,15.84332069]
[1751298989151,0.38688217,2477.4,2477.3,25.84332069]
[1751298990150,0.01,2477.6,2477.5,4.03632694]
[1751298990339,0.01,2477.6,2477.5,12.01202955]
[1751298992476,0.01,2477.6,2477.5,12.56202955]
[1751298992636,0.01,2477.6,2477.5,14.61230577]
[1751298994481,0.01,2477.6,2477.5,12.56202955]
[1751298994683,0.01,2477.6,2477.5,8.52570261]
[1751298994980,0.01,2477.6,2477.5,12.56202955]
[1751298995580,0.01,2477.6,2477.5,0.93970261]
[1751298995750,4.04616402,2477.6,2477.5,0.93970261]
[1751298995948,5.32487288,2477.6,2477.5,7.96970261]
[1751298998068,1.28870886,2477.6,2477.5,7.96970261]
[1751298998282,0.39688217,2477.6,2477.5,7.96970261]
[1751298999097,4.43304619,2477.6,2477.5,7.96970261]
[1751298999254,4.43304619,2477.6,2477.5,7.97021498]
[1751298999678,4.43304619,2477.6,2477.5,7.03]
[1751298999897,4.03673655,2477.3,2477.2,1.17431187]
[1751299000056,4.03673655,2477.3,2477.2,11.11651273]
[1751299000384,4.03673655,2477.3,2477.2,9.94220086]
[1751299000797,4.0365214,2477.4,2477.2,9.94220086]
[1751299000798,4.03650888,2477.4,2477.2,9.94220086]
[1751299001004,4.03650888,2477.4,2477.3,0.94020086]
[1751299001572,4.88348331,2477.4,2477.3,7.96620086]
[1751299001805,5.27036548,2477.4,2477.3,7.96620086]
[1751299002673,6.07076548,2477.4,2477.3,0.94020086]
[1751299002917,4.8375417,2477.0,2476.9,1.17431187]
[1751299003076,5.22442387,2477.0,2476.9,9.13953578]
[1751299003286,6.15056413,2477.0,2476.9,9.13953578]
[1751299003484,6.15056413,2477.0,2476.9,7.96522391]
[1751299003888,6.15056413,2477.0,2476.9,9.13953578]
[1751299003889,0.38688217,2477.0,2476.9,9.13953578]
[1751299004088,0.38688217,2477.0,2476.9,9.14214629]
[1751299004309,0.38688217,2477.0,2476.9,7.96522391]
[1751299005288,4.42402387,2477.0,2476.9,2.11840206]
[1751299005608,4.42402387,2477.0,2476.9,9.14140206]
[1751299005609,0.38688217,2477.0,2476.9,9.14140206]
[1751299006121,0.38688217,2477.0,2476.9,2.11840206]
[1751299006122,4.42402387,2477.0,2476.9,2.11840206]
[1751299006281,5.2701258,2477.0,2476.9,7.96322391]
[1751299006478,5.2701258,2477.0,2476.9,0.94122391]
[1751299006714,6.0753258,2477.0,2476.9,7.96322391]
[1751299007695,5.2701258,2477.0,2476.9,7.96322391]
[1751299007890,4.42402387,2477.0,2476.9,7.96322391]
[1751299009731,0.38688217,2477.0,2476.9,7.96322391]
[1751299010033,4.42402387,2477.0,2476.9,0.94122391]
[1751299010232,4.42402387,2477.0,2476.9,7.96122391]
[1751299010405,5.35341629,2477.0,2476.9,7.96122391]
[1751299010729,5.35341629,2477.0,2476.9,7.02]
[1751299012229,4.88347472,2477.4,2476.9,7.02]
[1751299012230,0.21075921,2479.0,2478.4,4.0348612]
[1751299012447,0.40374759,2479.5,2478.7,15.1927621]
[1751299012600,0.40374759,2479.5,2479.4,21.97450207]
[1751299012799,0.40374759,2479.5,2479.4,1.0177]
[1751299013031,0.40374759,2479.5,2479.4,0.2016]
[1751299013331,1.82087286,2479.5,2479.4,7.018]
[1751299013503,0.7637,2479.8,2479.4,7.018]
[1751299013702,0.01,2479.9,2479.6,4.03289009]
[1751299013941,0.01,2479.9,2479.5,4.03297899]
[1751299014235,0.01,2479.9,2479.4,7.018]
[1751299014742,0.01,2479.9,2479.6,4.03289596]
[1751299014946,0.01,2479.9,2479.5,4.0330057]
[1751299015308,0.24867199,2479.9,2479.4,11.05116511]
[1751299015510,0.01,2479.9,2479.4,11.05116511]
[1751299016221,0.01,2479.9,2479.5,4.03303643]
[1751299016426,0.01,2479.9,2479.4,7.018]
[1751299016610,0.01,2479.9,2479.7,4.03262152]
[1751299016944,0.01,2479.9,2479.8,7.016]
[1751299018743,0.01,2479.9,2479.8,11.04858327]
[1751299018910,0.01,2479.9,2479.8,7.016]
[1751299019529,0.01,2479.9,2479.8,11.04858327]
[1751299019817,0.01,2479.9,2479.8,7.016]
[1751299020319,0.01,2479.9,2479.8,11.04858327]
[1751299020542,0.01,2479.9,2479.8,11.98484131]
[1751299021446,0.01,2479.9,2479.8,11.04858327]
[1751299021651,0.01,2479.9,2479.8,7.016]
[1751299021828,0.01,2479.9,2479.8,11.04858327]
[1751299022029,0.01,2479.9,2479.8,12.83033884]
[1751299022443,0.01,2479.9,2479.8,13.38033884]
[1751299022618,0.01,2479.9,2479.8,24.51442278]
[1751299024025,0.01,2479.9,2479.8,35.9235977]
[1751299024221,0.01,2479.9,2479.8,33.57469255]
[1751299024656,0.01,2479.9,2479.8,35.89723204]
[1751299024864,0.01,2479.9,2479.8,33.57469255]
[1751299025746,0.01,2480.9,2480.5,4.03129851]
[1751299026067,0.01,2480.9,2480.4,4.8425652]
[1751299026068,0.01,2480.9,2480.6,23.93164945]
[1751299026270,0.01,2480.9,2480.8,4.03095775]
[1751299026431,0.01,2480.9,2480.8,11.96698126]
[1751299027266,0.01,2480.9,2480.8,0.92602351]
[1751299027447,0.01,2480.9,2480.8,1.958]
[1751299027640,0.01,2480.9,2480.8,8.968]
[1751299027840,0.01,2480.9,2480.8,12.99895775]
[1751299028036,0.01,2480.9,2480.8,10.2545458]
[1751299028235,0.01,2480.9,2480.8,15.21031193]
[1751299028755,0.01,2480.9,2480.8,7.008]
[1751299029855,0.01,2480.9,2480.4,1.0118]
[1751299030158,4.03112024,2480.7,2480.6,1.958]
[1751299030358,4.03112024,2480.7,2480.5,8.966]
[1751299030553,4.03112024,2480.7,2480.2,15.19106701]
[1751299030725,4.97112024,2480.7,2480.3,9.88786206]
[1751299030928,0.94,2480.7,2480.4,0.92286206]
[1751299031128,4.97139804,2480.6,2480.3,1.957]
[1751299031354,4.97139804,2480.6,2480.5,7.007]
[1751299031979,0.94,2480.6,2480.5,7.007]
[1751299032271,4.03146323,2480.5,2480.2,1.957]
[1751299032427,4.0316078,2480.4,2480.3,0.92243262]
[1751299032941,4.0316078,2480.4,2479.9,15.1915367]
[1751299033142,4.0316078,2480.4,2480.1,10.0]
[1751299033342,4.82026768,2480.5,2480.2,7.92968723]
[1751299033343,4.82031527,2480.5,2480.2,7.92968723]
[1751299033542,4.82033822,2480.5,2480.2,7.007]
[1751299033752,4.03161174,2480.4,2480.2,7.007]
[1751299034333,4.0316078,2480.4,2480.3,0.92295283]
[1751299034863,4.0316078,2480.4,2480.2,7.007]
[1751299035063,4.0316078,2480.4,2480.1,1.957]
[1751299035233,4.0316078,2480.4,2480.3,7.007]
[1751299035434,4.03167753,2480.4,2480.3,7.006]
[1751299036561,0.94,2480.7,2480.3,7.006]
[1751299036766,4.03146555,2480.5,2480.4,0.9234508]
[1751299036962,4.97122864,2480.7,2480.4,0.9234508]
[1751299037164,0.94,2480.7,2480.4,4.03151639]
[1751299037337,0.94,2480.7,2480.5,0.92363971]
[1751299037538,0.94,2480.7,2480.6,7.92963971]
[1751299037840,0.94,2480.7,2480.6,7.92945304]
[1751299038363,4.03178627,2480.3,2480.1,1.15920691]
[1751299038539,4.03209548,2480.1,2480.0,3.11287701]
[1751299038737,4.03209548,2480.1,2480.0,11.04358542]
[1751299039040,4.03202664,2480.2,2480.0,11.04358542]
[1751299039238,4.97178627,2480.3,2480.0,1.957]
[1751299039239,0.94,2480.1,2480.0,1.957]
[1751299039563,4.97200904,2480.2,2480.0,9.88788463]
[1751299039769,4.97209548,2480.1,2480.0,8.962]
[1751299039968,4.97209548,2480.1,2480.0,2.88288414]
[1751299040168,0.94,2480.1,2480.0,9.88788414]
[1751299040336,0.94,2480.1,2480.0,11.43349336]
[1751299040660,0.94,2480.1,2480.0,17.24418188]
[1751299041236,0.94,2480.1,2480.0,12.20629797]
[1751299042246,4.97209548,2480.1,2480.0,9.88788414]
[1751299042444,0.94,2480.1,2480.0,9.88788414]
[1751299042755,4.97209548,2480.1,2480.0,7.93088414]
[1751299043457,4.97209548,2480.1,2480.0,10.25842983]
[1751299043458,0.94,2480.1,2480.0,10.25842983]
[1751299043662,4.97209548,2480.1,2480.0,2.47783554]
[1751299043981,16.34969503,2480.1,2480.0,2.09007369]
[1751299044362,23.23969503,2480.1,2480.0,1.15087744]
[1751299044687,14.84282066,2479.9,2479.8,1.5519514]
[1751299044868,22.67282066,2479.9,2479.8,1.5519514]
[1751299045360,4.03290853,2479.6,2479.5,7.004]
[1751299045568,4.03278018,2479.7,2479.5,7.004]
[1751299045957,4.03290853,2479.6,2479.5,7.004]
[1751299047355,4.03290853,2479.6,2479.4,3.09103955]
[1751299047356,4.03307118,2479.5,2479.4,3.09103955]
[1751299047560,4.03307118,2479.5,2479.3,10.09603955]
[1751299047561,4.03323384,2479.4,2479.3,10.09603955]
[1751299048170,4.03307863,2479.5,2479.3,7.005]
[1751299048351,4.03323384,2479.4,2479.3,7.005]
[1751299048953,4.85183384,2479.4,2479.3,7.005]
[1751299049247,4.03372191,2479.1,2479.0,3.89054919]
[1751299049460,4.03372191,2479.1,2479.0,10.89454919]
[1751299049671,4.03365257,2479.2,2479.0,7.004]
[1751299049983,4.03372191,2479.1,2479.0,3.90447749]
[1751299050178,4.03372191,2479.1,2478.9,3.92447749]
[1751299050379,4.03388463,2479.0,2478.9,0.02]
[1751299050681,4.03388463,2479.0,2478.9,7.024]
[1751299050980,4.03381317,2479.1,2478.9,7.024]
[1751299051186,0.8186,2479.4,2479.0,3.90588601]
[1751299051357,8.622,2479.9,2479.2,10.0]
[1751299051678,8.622,2479.9,2479.6,3.12446792]
[1751299051982,4.03274589,2479.7,2479.6,3.12446792]
[1751299052183,4.03274589,2479.7,2479.6,7.004]
[1751299052656,4.03274589,2479.7,2479.4,3.12446792]
[1751299052657,4.03307118,2479.5,2479.4,3.12446792]
[1751299052864,4.03323384,2479.4,2479.3,10.12846792]
[1751299053265,4.86493384,2479.4,2479.3,3.12446792]
[1751299053573,4.86493384,2479.4,2479.2,3.12446792]
[1751299053574,4.03339652,2479.3,2479.2,3.12446792]
[1751299053781,4.03339652,2479.3,2479.2,10.12846792]
[1751299054880,4.03339652,2479.3,2479.2,3.12446792]
[1751299055077,4.92322956,2479.3,2479.2,3.12446792]
[1751299055282,4.03355921,2479.2,2479.1,10.12846792]
[1751299056348,4.03355921,2479.2,2479.1,3.12446792]
[1751299056553,4.03355921,2479.2,2479.1,4.06155774]
[1751299056784,4.03355921,2479.2,2479.1,11.06455774]
[1751299057585,4.03355921,2479.2,2479.1,7.94008982]
[1751299057985,4.03355921,2479.2,2479.1,10.28398069]
[1751299058490,4.03355921,2479.2,2479.1,7.94008982]
[1751299058661,4.03355921,2479.2,2479.1,9.50298714]
[1751299059395,5.01340809,2479.2,2479.1,2.49998714]
[1751299059551,15.83890809,2479.2,2479.1,0.93708982]
[1751299060671,24.21890809,2479.2,2479.1,0.93708982]
[1751299061172,37.42990809,2479.2,2479.1,0.93708982]
[1751299061356,19.63778463,2479.0,2478.9,0.02]
[1751299062291,14.8365984,2478.5,2478.4,1.56289732]
[1751299062592,22.6665984,2478.5,2478.4,1.56289732]
[1751299063270,14.0348612,2478.4,2478.3,1.56289732]
[1751299063468,15.70358522,2478.4,2478.3,1.56289732]
[1751299063900,15.70358522,2478.4,2477.9,7.022]
[1751299063901,4.03505671,2478.3,2478.1,3.12446792]
[1751299064061,4.03518682,2478.2,2478.1,3.12446792]
[1751299064794,4.81138682,2478.2,2478.1,3.12446792]
[1751299064996,14.81138682,2478.2,2478.1,3.12446792]
[1751299065160,15.70121986,2478.2,2478.1,3.12446792]
[1751299065360,4.03534966,2478.1,2478.0,3.12446792]
[1751299065560,4.03551251,2478.0,2477.9,0.02]
[1751299065782,4.03534966,2478.1,2477.9,0.02]
[1751299066095,4.03551251,2478.0,2477.9,0.02]
[1751299066263,5.01536139,2478.0,2477.9,2.36348569]
[1751299066460,5.01536139,2478.0,2477.9,0.02]
[1751299066862,5.01536139,2478.0,2477.9,1.58228178]
[1751299067757,5.01536139,2478.0,2477.9,0.02]
[1751299068603,15.80556139,2478.0,2477.9,0.02]
[1751299068800,24.18556139,2478.0,2477.9,0.02]
[1751299075081,28.18556139,2478.0,2477.9,0.02]
[1751299075690,33.10159199,2478.0,2477.9,0.02]
[1751299076293,4.8310417,2477.0,2476.9,0.02]
[1751299076492,15.71784712,2477.0,2476.9,0.02]
[1751299076807,15.71784712,2477.0,2476.9,0.95615645]
[1751299077009,15.71784712,2477.0,2476.9,0.02]
[1751299077306,16.26784712,2477.0,2476.9,0.02]
[1751299077709,23.26784712,2477.0,2476.9,0.02]
[1751299078781,25.21884712,2477.0,2476.9,0.02]
[1751299078984,16.26784712,2477.0,2476.9,0.02]
[1751299079369,20.26784712,2477.0,2476.9,0.02]
[1751299079619,19.71784712,2477.0,2476.9,0.02]
[1751299080003,15.71784712,2477.0,2476.9,0.02]
[1751299080204,16.26784712,2477.0,2476.9,0.02]
[1751299080503,18.21884712,2477.0,2476.9,0.02]
[1751299081108,17.66884712,2477.0,2476.9,0.02]
[1751299081308,15.71784712,2477.0,2476.9,0.02]
[1751299081609,16.26784712,2477.0,2476.9,0.02]
[1751299083306,23.26784712,2477.0,2476.9,0.02]
[1751299083805,31.09784712,2477.0,2476.9,0.02]
[1751299084114,24.09784712,2477.0,2476.9,0.02]
[1751299084314,33.04984712,2477.0,2476.9,0.02]
[1751299085621,40.34883069,2477.0,2476.9,0.02]
[1751299085921,26.47092957,2476.2,2476.1,0.02]
[1751299086088,38.29860179,2476.2,2476.1,0.02]
[1751299086782,27.16861822,2476.2,2476.1,0.02]
[1751299087613,18.21761822,2476.2,2476.1,0.02]
[1751299087819,4.58877221,2476.0,2475.9,0.02]
[1751299088122,33.50245578,2476.0,2475.9,0.02]
[1751299088330,25.21630525,2476.0,2475.9,0.02]
[1751299088696,16.26430525,2476.0,2475.9,0.02]
[1751299088906,25.21630525,2476.0,2475.9,0.02]
[1751299090200,14.92860525,2476.0,2475.9,0.02]
[1751299090516,4.03877221,2476.0,2475.9,0.95601928]
[1751299091910,14.03877221,2476.0,2475.9,0.95601928]
[1751299092622,4.03877221,2476.0,2475.9,0.95601928]
[1751299093529,4.03868532,2476.1,2475.9,0.95601928]
[1751299093733,14.03868532,2476.1,2476.0,1.76381928]
[1751299094329,14.03868532,2476.1,2476.0,0.93601928]
[1751299094515,15.84640102,2476.1,2476.0,0.93601928]
[1751299097108,14.58877221,2476.0,2475.9,0.02]
[1751299097305,15.35547221,2476.0,2475.9,0.02]
[1751299097550,15.35547221,2476.0,2475.9,0.95853152]
[1751299097551,18.29311065,2476.0,2475.9,0.95853152]
[1751299097837,18.29311065,2476.0,2475.9,0.9585564]
[1751299098008,18.29311065,2476.0,2475.3,1.56228178]
[1751299098009,0.55,2475.4,2475.3,1.56228178]
[1751299098199,0.55,2475.4,2475.2,0.02]
[1751299098200,14.58991435,2475.3,2475.2,0.02]
[1751299098415,15.47671977,2475.3,2475.2,0.02]
[1751299098616,16.27091977,2475.3,2475.2,0.02]
[1751299099423,18.22391977,2475.3,2475.2,0.02]
[1751299100016,14.03991435,2475.3,2475.2,0.02]
[1751299100217,4.03991435,2475.3,2475.2,0.02]
[1751299101129,4.03991435,2475.3,2475.2,0.8153]
[1751299101446,4.03987618,2475.4,2475.2,2.37758178]
[1751299101822,4.03987618,2475.4,2475.2,0.8153]
[1751299102043,4.03790685,2476.6,2475.3,1.953]
[1751299102249,4.03958796,2475.5,2475.4,0.767]
[1751299102631,4.03950076,2475.6,2475.4,0.767]
[1751299102831,4.03958796,2475.5,2475.4,0.767]
[1751299103034,4.03915118,2475.8,2475.4,0.767]
[1751299103221,4.03934586,2475.7,2475.4,0.767]
[1751299103422,4.03956972,2475.6,2475.4,1.44420657]
[1751299104158,4.03956972,2475.6,2475.5,0.771]
[1751299104333,4.03828292,2476.3,2475.5,0.771]
[1751299104334,4.03932601,2475.7,2475.5,0.771]
[1751299104526,4.03942478,2475.6,2475.5,1.17542718]
[1751299104871,4.03958796,2475.5,2475.4,1.85263375]
[1751299105080,4.03950281,2475.6,2475.4,1.85263375]
[1751299105243,4.03950281,2475.6,2475.5,1.9958878]
[1751299105928,4.03950281,2475.6,2475.5,0.8205]
[1751299106351,4.03950281,2475.6,2475.5,1.9958878]
[1751299106977,4.03788874,2476.6,2475.5,1.9958878]
[1751299106978,4.0386091,2476.1,2475.5,1.9958878]
[1751299107153,4.03942478,2475.6,2475.5,1.9958878]
[1751299107348,4.03942478,2475.6,2475.5,2.35170476]
[1751299107652,4.03942478,2475.6,2475.5,1.9958878]
[1751299107827,4.03942478,2475.6,2475.5,0.8205]
[1751299108426,4.03942478,2475.6,2475.5,1.9958878]
[1751299109033,14.85874274,2476.4,2475.5,1.9958878]
[1751299109559,1.945,2476.5,2475.5,1.9958878]
[1751299109768,4.03910421,2475.8,2475.6,0.35581696]
[1751299109933,4.03926162,2475.7,2475.6,0.35581696]
[1751299110132,4.03917448,2475.8,2475.6,1.29743905]
[1751299110342,4.03917448,2475.8,2475.7,0.94162209]
[1751299111532,4.03942478,2475.6,2475.5,0.8205]
[1751299112364,4.0391941,2475.8,2475.5,0.8205]
[1751299112564,4.0391941,2475.8,2475.5,1.71055997]
[1751299113152,4.0392745,2475.7,2475.5,1.71055997]
[1751299113350,4.03942478,2475.6,2475.5,0.8205]
[1751299113564,4.03942478,2475.6,2475.5,7.8115]
[1751299114661,4.03942478,2475.6,2475.5,8.75440049]
[1751299114866,4.03860933,2476.1,2475.5,8.75440049]
[1751299115062,4.03860933,2476.1,2475.5,7.8115]
[1751299115063,4.03921116,2475.8,2475.5,7.8115]
[1751299115266,4.039289,2475.7,2475.6,0.94308585]
[1751299115477,4.039289,2475.7,2475.5,7.8115]
[1751299115678,4.039289,2475.7,2475.6,0.94308521]
[1751299116059,4.03918436,2475.8,2475.6,0.94308521]
[1751299116261,4.03918436,2475.8,2475.5,7.8115]
[1751299116448,4.03918436,2475.8,2475.6,0.94296913]
[1751299116781,4.03909847,2475.8,2475.7,0.94283335]
[1751299116943,4.03942478,2475.6,2475.5,0.8205]
[1751299117280,4.03935053,2475.7,2475.5,8.7533878]
[1751299117444,4.03921458,2475.8,2475.6,0.9428878]
[1751299117652,4.03897791,2475.9,2475.5,7.8105]
[1751299117873,4.03932461,2475.7,2475.6,0.94294802]
[1751299118674,4.03913871,2475.8,2475.6,0.94294802]
[1751299118982,4.03919888,2475.8,2475.5,7.8105]
[1751299119287,4.03904746,2475.9,2475.6,0.94289721]
[1751299119448,4.03884033,2476.0,2475.7,0.94289721]
[1751299119779,4.03901229,2475.9,2475.5,12.74865578]
[1751299119981,4.03885297,2476.0,2475.6,0.94294513]
[1751299120278,4.03894658,2475.9,2475.7,0.94294513]
[1751299120481,0.01,2476.1,2475.5,12.74861204]
[1751299120686,0.01,2476.1,2475.8,4.86988768]
[1751299121370,0.01,2476.1,2476.0,4.03877221]
[1751299121543,0.01,2476.1,2476.0,11.02577221]
[1751299122045,0.01,2476.1,2476.0,6.987]
[1751299122644,0.01,2476.1,2476.0,8.7912239]
[1751299123088,0.01,2476.1,2476.0,12.82999611]
[1751299123280,0.01,2476.1,2476.0,8.7912239]
[1751299125398,4.0486091,2476.1,2476.0,7.93037994]
[1751299125599,0.01,2476.1,2476.0,6.987]
[1751299125775,4.0486091,2476.1,2476.0,6.987]
[1751299125976,0.01,2476.1,2476.0,6.987]
[1751299126176,4.0486091,2476.1,2476.0,6.987]
[1751299127185,0.01,2476.1,2476.0,6.987]
[1751299127771,4.0486091,2476.1,2476.0,6.987]
[1751299128268,4.0486091,2476.1,2475.8,2.7758]
[1751299128269,4.03893533,2475.9,2475.8,0.8308]
[1751299128464,4.03893533,2475.9,2475.8,7.8138]
[1751299129872,4.03893533,2475.9,2475.8,6.983]
[1751299130818,4.03893533,2475.9,2475.6,2.7118]
[1751299130819,4.03926162,2475.7,2475.6,0.7678]
[1751299131012,4.03926162,2475.7,2475.6,0.94391926]
[1751299131180,4.03926162,2475.7,2475.6,7.92591926]
[1751299131604,4.03942478,2475.6,2475.5,0.02]
[1751299131893,4.03942478,2475.6,2475.5,7.94591622]
[1751299133020,4.03932582,2475.7,2475.5,7.94591622]
[1751299133318,4.03932582,2475.7,2475.6,0.94391622]
[1751299135492,4.84717077,2475.7,2475.6,0.94391622]
[1751299136846,4.03877342,2476.0,2475.6,0.94391622]
[1751299136847,0.7901,2476.0,2475.6,0.94391622]
[1751299137050,4.03909847,2475.8,2475.7,0.94391622]
[1751299139849,4.03904917,2475.9,2475.7,0.94391622]
[1751299140022,4.03904917,2475.9,2475.8,2.11930402]
[1751299140222,0.01,2476.1,2475.8,2.11930402]
[1751299140454,0.01,2476.1,2475.9,0.94391622]
[1751299140657,0.01,2476.1,2476.0,0.94391622]
[1751299140832,4.04863852,2476.1,2476.0,0.94391622]
[1751299142132,0.01,2476.1,2476.0,0.94391622]
[1751299142342,0.01,2476.1,2476.0,1.72201622]
[1751299143368,4.0486091,2476.1,2476.0,1.72201622]
[1751299144918,4.0486091,2476.1,2476.0,0.94391622]
[1751299145122,4.03893533,2475.9,2475.8,0.8076]
[1751299145324,4.03893533,2475.9,2475.8,0.9423335]
[1751299145562,4.03893533,2475.9,2475.6,7.1756]
[1751299145766,0.01,2476.1,2475.8,0.806]
[1751299145962,0.01,2476.1,2475.9,0.94233891]
[1751299146123,0.01,2476.1,2476.0,6.973]
[1751299146328,4.0486091,2476.1,2476.0,6.973]
[1751299146954,0.01,2476.1,2476.0,6.973]